bitfinex-derivatives/quotes_SOLF0:USTF0_20241227
["timestamp","ask_amount","ask_price","bid_price","bid_amount"]
[1735307116474,1.5446,189.41,189.3,3.36]
[1735307116475,7.70616475,189.35,189.3,3.36]
[1735307116771,7.70616475,189.33,189.27,7.29762816]
[1735307116967,7.70616475,189.33,189.29,3.36]
[1735307117269,7.70616475,189.33,189.29,6.0044]
[1735307118175,12.06897928,189.37,189.29,6.0044]
[1735307118376,12.06897928,189.37,189.29,3.36]
[1735307119075,2.6438,189.34,189.29,3.36]
[1735307119683,12.06897928,189.34,189.26,3.36]
[1735307120177,12.06897928,189.34,189.29,2.6444]
[1735307120377,1.6257,189.36,189.26,3.36]
[1735307121174,4.2692,189.36,189.29,2.6444]
[1735307121680,1.6257,189.36,189.29,2.6444]
[1735307121975,1.6257,189.36,189.26,3.36]
[1735307122171,1.6257,189.36,189.25,3.2807]
[1735307122370,2.6436,189.35,189.26,3.36]
[1735307122671,12.06897928,189.34,189.26,3.36]
[1735307122874,2.6442,189.31,189.26,3.36]
[1735307123175,12.06897928,189.34,189.26,6.0047]
[1735307123376,2.6443,189.3,189.26,6.0047]
[1735307123577,12.06897928,189.34,189.29,2.6443]
[1735307124578,12.06897928,189.37,189.32,2.644]
[1735307124883,12.06897928,189.37,189.27,13.75587928]
[1735307125080,12.06897928,189.37,189.3,2.6443]
[1735307125279,2.6431,189.39,189.27,13.75587928]
[1735307125679,2.6431,189.39,189.3,2.6442]
[1735307125874,2.6431,189.39,189.27,13.75587928]
[1735307126281,2.6431,189.39,189.33,2.6438]
[1735307126676,2.6431,189.39,189.32,3.36]
[1735307126677,12.06897928,189.4,189.32,3.36]
[1735307126983,2.6434,189.37,189.32,3.36]
[1735307128076,12.06897928,189.37,189.28,3.36]
[1735307128480,12.06897928,189.34,189.28,3.36]
[1735307129487,12.06897928,189.34,189.26,3.36]
[1735307129880,2.6443,189.31,189.26,3.36]
[1735307131782,14.71327928,189.31,189.26,3.36]
[1735307132191,2.6443,189.3,189.26,3.36]
[1735307132486,2.6443,189.3,189.26,1.3267]
[1735307133081,12.06897928,189.31,189.18,14.94853928]
[1735307133288,2.6446,189.28,189.23,2.6451]
[1735307133989,14.71327928,189.31,189.25,2.6449]
[1735307135089,14.71327928,189.31,189.21,3.38]
[1735307135289,12.06897928,189.34,189.21,15.44897928]
[1735307135790,12.06897928,189.37,189.24,12.06897928]
[1735307136095,5.2823,189.53,189.27,12.06897928]
[1735307136096,12.06897928,189.4,189.27,12.06897928]
[1735307136283,12.06897928,189.43,189.3,12.06897928]
[1735307136487,12.06897928,189.43,189.31,1.6858]
[1735307137392,4.1874,189.41,189.34,2.6436]
[1735307137692,4.1874,189.41,189.34,3.4]
[1735307138289,4.1874,189.41,189.35,2.6435]
[1735307139988,2.6426,189.42,189.36,2.6434]
[1735307140180,2.6426,189.42,189.34,3.4]
[1735307140380,12.06897928,189.43,189.34,3.4]
[1735307140590,12.06897928,189.43,189.39,2.643]
[1735307140789,12.06897928,189.43,189.34,3.4]
[1735307142088,12.06897928,189.4,189.34,3.4]
[1735307142983,12.06897928,189.4,189.31,1.6858]
[1735307143185,12.06897928,189.4,189.31,5.0658]
[1735307143388,2.6435,189.37,189.31,7.7098]
[1735307143588,12.06897928,189.37,189.27,1.611]
[1735307144094,12.06897928,189.37,189.28,3.38]
[1735307144590,2.6436,189.36,189.29,2.6443]
[1735307144791,2.6436,189.36,189.28,3.38]
[1735307144995,12.06897928,189.37,189.28,3.38]
[1735307145191,2.6439,189.34,189.28,2.6445]
[1735307145785,2.644,189.32,189.27,6.0247]
[1735307145990,12.06897928,189.34,189.26,3.38]
[1735307147393,2.6442,189.31,189.25,2.645]
[1735307147695,2.6442,189.31,189.24,3.38]
[1735307147896,12.06897928,189.34,189.24,3.38]
[1735307149097,12.06897928,189.34,189.26,2.6448]
[1735307149098,2.6442,189.31,189.26,2.6448]
[1735307149890,12.06897928,189.31,189.2,7.29762816]
[1735307150196,12.06897928,189.31,189.21,3.4]
[1735307150796,12.06897928,189.31,189.26,2.6448]
[1735307151701,2.6441,189.32,189.26,2.6448]
[1735307153302,2.6441,189.32,189.27,2.6447]
[1735307155009,12.06897928,189.34,189.27,2.6447]
[1735307155198,2.6442,189.31,189.21,15.46897928]
[1735307156008,1.556,189.36,189.24,12.06897928]
[1735307156208,12.06897928,189.37,189.27,12.06897928]
[1735307156409,12.06897928,189.37,189.28,3.4]
[1735307157109,2.6436,189.35,189.29,2.6444]
[1735307157810,12.06897928,189.42,189.31,12.06897928]
[1735307158105,1.5564,189.44,189.31,12.06897928]
[1735307158106,4.1989,189.44,189.38,2.6432]
[1735307158306,1.5564,189.44,189.37,3.4]
[1735307158906,4.1987,189.44,189.39,2.643]
[1735307159712,4.1987,189.44,189.37,6.0432]
[1735307160905,14.71117928,189.45,189.39,2.6429]
[1735307162906,12.06897928,189.45,189.37,3.4]
[1735307163113,12.06897928,189.48,189.37,3.4]
[1735307163308,1.6611,189.51,189.38,3.1821]
[1735307163309,13.73007928,189.51,189.38,3.1821]
[1735307163707,12.06897928,189.51,189.46,2.6421]
[1735307164611,12.06897928,189.51,189.45,3.36]
[1735307164818,12.06897928,189.51,189.43,3.36]
[1735307166315,12.06897928,189.51,189.45,2.6422]
[1735307168216,14.71037928,189.51,189.45,2.6422]
[1735307168709,2.6417,189.49,189.44,3.36]
[1735307168915,12.06897928,189.51,189.44,3.36]
[1735307169117,12.06897928,189.48,189.44,3.36]
[1735307169314,2.6419,189.47,189.44,3.36]
[1735307169517,12.06897928,189.48,189.44,3.36]
[1735307169917,2.642,189.47,189.44,3.36]
[1735307170219,2.642,189.47,189.41,3.36]
[1735307171517,2.642,189.47,189.42,2.6426]
[1735307173020,12.06897928,189.48,189.41,3.36]
[1735307173215,12.06897928,189.51,189.41,3.36]
[1735307173614,12.06897928,189.51,189.45,2.6421]
[1735307175412,12.06897928,189.51,189.43,2.6424]
[1735307176320,12.06897928,189.51,189.41,3.36]
[1735307176522,2.6416,189.5,189.44,2.6423]
[1735307177025,2.6417,189.49,189.44,2.6423]
[1735307177525,2.6418,189.48,189.42,2.6425]
[1735307177918,2.6418,189.48,189.41,3.36]
[1735307177919,12.06897928,189.48,189.41,3.36]
[1735307179426,2.6421,189.46,189.41,3.36]
[1735307179724,12.06897928,189.48,189.41,3.36]
[1735307180419,12.06897928,189.48,189.35,13.75597928]
[1735307180614,12.06897928,189.48,189.39,3.36]
[1735307181120,12.06897928,189.51,189.39,3.36]
[1735307181321,2.6418,189.49,189.43,2.6424]
[1735307181516,2.6418,189.49,189.39,3.36]
[1735307181928,12.06897928,189.51,189.39,3.36]
[1735307182126,2.6418,189.48,189.43,2.6425]
[1735307182926,12.06897928,189.51,189.39,3.36]
[1735307184723,12.06897928,189.51,189.39,4.9261]
[1735307184925,12.06897928,189.51,189.39,6.5381]
[1735307185530,2.6416,189.5,189.44,2.6422]
[1735307185923,4.8152,189.53,189.44,2.6422]
[1735307186123,2.6418,189.49,189.43,2.6425]
[1735307188837,2.6415,189.5,189.44,2.6422]
[1735307189438,2.6415,189.5,189.45,2.6422]
[1735307190133,7.71182737,189.48,189.45,2.6422]
[1735307192938,10.35332737,189.5,189.45,2.6422]
[1735307193145,3.2163,189.53,189.45,3.34]
[1735307193347,7.71182737,189.5,189.45,3.34]
[1735307193540,3.2163,189.53,189.45,3.34]
[1735307193742,7.71182737,189.5,189.46,2.642]
[1735307194635,7.71182737,189.48,189.45,3.34]
[1735307194845,7.71182737,189.46,189.45,3.34]
[1735307195046,7.71182737,189.46,189.4,7.29762816]
[1735307195253,10.35442737,189.43,189.41,3.34]
[1735307195542,7.71182737,189.43,189.4,7.29762816]
[1735307195841,7.71182737,189.41,189.4,7.29762816]
[1735307196040,7.71182737,189.41,189.39,7.29762816]
[1735307196244,2.6428,189.42,189.39,7.29762816]
[1735307196642,12.05990011,189.45,189.39,7.29762816]
[1735307196844,14.70280011,189.4,189.39,4.75242816]
[1735307197146,12.05990011,189.4,189.33,3.34]
[1735307197347,14.70240011,189.43,189.37,2.6432]
[1735307197658,12.05990011,189.43,189.33,3.34]
[1735307197946,2.6428,189.41,189.36,2.6434]
[1735307198637,12.05990011,189.43,189.32,1.5603]
[1735307198841,12.05990011,189.4,189.32,1.5603]
[1735307199439,12.05990011,189.4,189.36,2.6434]
[1735307200047,14.70240011,189.43,189.36,2.6434]
[1735307200244,12.05990011,189.43,189.32,1.5603]
[1735307200548,12.05990011,189.43,189.35,2.6436]
[1735307200939,12.05990011,189.43,189.33,2.6438]
[1735307201745,12.05990011,189.43,189.32,1.5603]
[1735307201946,3.2373,189.44,189.32,1.5603]
[1735307202145,12.05990011,189.43,189.32,1.5603]
[1735307202548,14.70240011,189.43,189.32,1.5603]
[1735307202757,12.05990011,189.43,189.32,1.5603]
[1735307202947,2.643,189.4,189.34,2.6436]
[1735307203146,12.05990011,189.43,189.32,1.5603]
[1735307203752,2.6427,189.42,189.36,2.6433]
[1735307205249,12.05990011,189.43,189.38,2.6431]
[1735307205449,12.05990011,189.43,189.38,3.34]
[1735307205952,12.05990011,189.43,189.39,2.643]
[1735307206451,12.05990011,189.43,189.38,3.34]
[1735307206452,12.05990011,189.46,189.38,3.34]
[1735307206655,2.6423,189.44,189.39,2.643]
[1735307206853,12.05990011,189.43,189.38,3.34]
[1735307208150,12.05990011,189.4,189.32,25.23288448]
[1735307208548,2.6435,189.36,189.32,3.34]
[1735307208747,2.6435,189.36,189.31,5.9842]
[1735307209946,2.6435,189.36,189.31,3.34]
[1735307210654,12.05990011,189.37,189.29,3.34]
[1735307210948,12.05990011,189.34,189.24,21.89288448]
[1735307211253,2.6442,189.31,189.25,3.34]
[1735307212454,2.6442,189.31,189.25,5.985]
[1735307218659,2.6445,189.29,189.25,3.34]
[1735307219554,12.05990011,189.31,189.22,1.5718]
[1735307219857,12.05990011,189.31,189.22,3.34]
[1735307220248,12.05990011,189.31,189.26,2.6448]
[1735307221054,12.05990011,189.31,189.24,2.645]
[1735307221452,12.05990011,189.31,189.22,3.34]
[1735307221668,12.05990011,189.28,189.22,3.34]
[1735307222052,2.6447,189.27,189.22,3.34]
[1735307222252,7.72952661,189.26,189.22,5.9854]
[1735307224761,7.72952661,189.26,189.22,2.6454]
[1735307225660,10.37442661,189.26,189.21,2.6455]
[1735307225858,7.72952661,189.24,189.2,3.32]
[1735307226057,7.72952661,189.24,189.19,3.32]
[1735307226457,7.72952661,189.24,189.18,4.50766]
[1735307226660,7.72952661,189.22,189.19,3.32]
[1735307226857,3.1502,189.32,189.19,3.32]
[1735307227059,7.72952661,189.23,189.19,3.32]
[1735307227458,7.72952661,189.23,189.2,2.6457]
[1735307228866,3.1502,189.32,189.19,3.32]
[1735307229068,7.72952661,189.27,189.2,7.72952661]
[1735307229466,7.72952661,189.29,189.22,7.72952661]
[1735307232265,12.07335472,189.32,189.19,15.39335472]
[1735307232467,2.6443,189.31,189.25,2.6449]
[1735307232663,2.6443,189.31,189.25,5.9649]
[1735307233780,1.6543,189.39,189.25,3.32]
[1735307233781,12.07335472,189.35,189.25,3.32]
[1735307234078,12.07335472,189.38,189.26,4.8352]
[1735307234380,12.07335472,189.38,189.33,2.6437]
[1735307234579,12.07335472,189.38,189.33,5.9637]
[1735307234974,12.07335472,189.38,189.33,2.6437]
[1735307235379,12.07335472,189.38,189.34,2.6437]
[1735307235970,70.42491876,189.41,189.35,2.6436]
[1735307236172,14.71615472,189.41,189.35,2.6436]
[1735307237076,2.6429,189.4,189.35,2.6436]
[1735307237387,12.07335472,189.41,189.38,2.6432]
[1735307237680,13.70205472,189.44,189.38,2.6432]
[1735307238282,2.6425,189.43,189.38,2.6432]
[1735307238479,12.07335472,189.44,189.37,3.32]
[1735307238685,12.07335472,189.44,189.38,3.32]
[1735307238884,12.07335472,189.44,189.39,3.32]
[1735307239582,12.07335472,189.44,189.29,21.93594597]
[1735307239782,12.07335472,189.44,189.3,3.32]
[1735307240285,12.07335472,189.44,189.3,25.25594597]
[1735307240485,2.6428,189.41,189.35,2.6435]
[1735307240685,2.6428,189.41,189.35,3.32]
[1735307241081,2.6427,189.42,189.36,2.6434]
[1735307241289,12.07335472,189.44,189.35,3.32]
[1735307241681,14.71575472,189.44,189.39,2.643]
[1735307242281,14.71575472,189.44,189.35,3.32]
[1735307242479,14.71575472,189.44,189.38,2.6432]
[1735307242788,12.07335472,189.44,189.35,3.32]
[1735307242978,12.07335472,189.41,189.35,3.32]
[1735307243687,2.6429,189.4,189.35,3.32]
[1735307244286,12.07335472,189.41,189.35,3.32]
[1735307244488,12.07335472,189.45,189.35,3.32]
[1735307245288,14.71565472,189.45,189.35,3.32]
[1735307246482,14.71565472,189.45,189.38,2.6432]
[1735307247392,14.71565472,189.45,189.39,2.643]
[1735307247893,14.71565472,189.45,189.39,5.963]
[1735307248184,12.07335472,189.45,189.39,3.32]
[1735307249291,2.6426,189.43,189.39,3.32]
[1735307252192,12.07335472,189.45,189.39,3.32]
[1735307252392,12.07335472,189.45,189.37,2.6433]
[1735307252593,12.07335472,189.42,189.36,3.32]
[1735307253391,12.07335472,189.45,189.36,3.32]
[1735307253886,2.6423,189.44,189.4,2.6429]
[1735307254092,12.07335472,189.45,189.4,2.6429]
[1735307254495,14.71565472,189.45,189.4,2.6429]
[1735307255891,2.6423,189.44,189.4,2.6429]
[1735307256793,1.6794,189.51,189.41,3.26]
[1735307256996,12.07335472,189.51,189.42,3.26]
[1735307257391,55.67193448,189.54,189.42,3.26]
[1735307257392,67.7452892,189.54,189.42,3.26]
[1735307257590,67.7452892,189.54,189.42,15.33335472]
[1735307258696,70.3862892,189.54,189.45,2.6421]
[1735307258898,70.3862892,189.54,189.42,15.33335472]
[1735307259791,70.3862892,189.54,189.47,2.6418]
[1735307259988,70.3862892,189.54,189.48,3.26]
[1735307260199,67.7452892,189.54,189.48,3.26]
[1735307260397,2.6411,189.53,189.48,3.26]
[1735307261096,12.07335472,189.54,189.48,3.26]
[1735307261293,1.5925,189.61,189.48,3.26]
[1735307261501,13.66585472,189.61,189.48,15.33335472]
[1735307261699,13.66585472,189.61,189.49,4.8575]
[1735307262101,12.07335472,189.61,189.49,4.8575]
[1735307262297,12.07335472,189.62,189.49,4.8575]
[1735307262797,2.6401,189.61,189.49,4.8575]
[1735307263299,12.07335472,189.62,189.49,4.8575]
[1735307263503,12.07335472,189.62,189.51,12.07335472]
[1735307263995,12.07335472,189.62,189.52,3.26]
[1735307264902,2.6403,189.59,189.53,2.6411]
[1735307265093,12.07335472,189.62,189.53,2.6411]
[1735307265498,2.6401,189.6,189.53,2.6411]
[1735307266506,2.6403,189.59,189.53,5.9011]
[1735307266706,12.07335472,189.62,189.53,5.9011]
[1735307267103,2.6401,189.61,189.53,3.26]
[1735307267304,12.07335472,189.62,189.53,3.26]
[1735307267508,2.6396,189.64,189.53,3.26]
[1735307267813,12.07335472,189.65,189.57,2.6405]
[1735307268296,12.07335472,189.69,189.62,2.6398]
[1735307268501,12.07335472,189.69,189.61,3.26]
[1735307268902,12.07335472,189.69,189.63,2.6397]
[1735307269100,12.07335472,189.69,189.61,3.26]
[1735307269101,1.39794625,189.79,189.61,15.33335472]
[1735307269303,3.2149,189.78,189.62,1.5335]
[1735307269503,12.07335472,189.76,189.62,1.5335]
[1735307269704,12.07335472,189.76,189.64,12.07335472]
[1735307269911,12.07335472,189.76,189.65,1.6079]
[1735307270106,14.71125472,189.76,189.66,3.26]
[1735307270706,12.07335472,189.76,189.66,3.26]
[1735307270906,2.638,189.75,189.68,2.639]
[1735307271709,12.07335472,189.76,189.65,1.6079]
[1735307271917,12.07335472,189.73,189.64,3.26]
[1735307273017,12.07335472,189.7,189.64,3.26]
[1735307273413,12.07335472,189.7,189.6,1.6079]
[1735307273613,2.6391,189.68,189.61,5.9]
[1735307274514,2.6391,189.68,189.62,3.26]
[1735307274818,2.6393,189.66,189.61,3.26]
[1735307275013,2.6393,189.66,189.6,3.26]
[1735307275513,2.6393,189.66,189.59,2.6401]
[1735307275713,2.6393,189.66,189.57,1.5454]
[1735307275714,1.5476,189.69,189.6,3.26]
[1735307276016,2.6395,189.65,189.6,3.26]
[1735307276924,12.07335472,189.67,189.59,3.26]
[1735307278415,14.71265472,189.67,189.59,3.26]
[1735307278611,1.5476,189.69,189.59,3.26]
[1735307278914,12.07335472,189.7,189.59,15.33335472]
[1735307279111,12.07335472,189.73,189.6,0.96991888]
[1735307279306,12.07335472,189.73,189.62,12.07335472]
[1735307279513,4.7445,189.78,189.62,12.07335472]
[1735307279514,12.07335472,189.76,189.63,1.6061]
[1735307279818,12.07335472,189.76,189.64,3.26]
[1735307280017,2.638,189.75,189.68,2.6389]
[1735307280213,2.638,189.75,189.69,3.26]
[1735307280614,2.638,189.75,189.69,5.8988]
[1735307281217,2.6382,189.74,189.69,3.26]
[1735307281617,12.07335472,189.76,189.69,3.26]
[1735307283722,14.71135472,189.76,189.69,5.8988]
[1735307283911,12.07335472,189.76,189.69,3.26]
[1735307284615,14.71135472,189.76,189.69,5.8987]
[1735307285016,14.71135472,189.76,189.69,3.26]
[1735307285317,12.07335472,189.82,189.69,3.26]
[1735307286119,2.6375,189.79,189.73,2.6383]
[1735307286316,2.6375,189.79,189.74,3.24]
[1735307286719,2.6376,189.78,189.74,3.24]
[1735307287921,2.6379,189.77,189.72,3.24]
[1735307288122,12.07335472,189.79,189.69,3.24]
[1735307288622,2.638,189.76,189.7,2.6387]
[1735307289026,14.71135472,189.76,189.7,2.6387]
[1735307289217,2.6381,189.75,189.69,5.8789]
[1735307290118,13.61655472,189.79,189.69,3.24]
[1735307290820,2.6379,189.76,189.69,5.8788]
[1735307291218,13.61655472,189.79,189.69,5.8788]
[1735307291416,2.6379,189.76,189.69,5.8788]
[1735307292330,2.6379,189.76,189.7,2.6387]
[1735307293519,2.6379,189.76,189.69,3.24]
[1735307293520,12.07335472,189.78,189.69,3.24]
[1735307293723,2.638,189.75,189.69,5.8788]
[1735307294022,12.07335472,189.78,189.69,3.24]
[1735307294425,2.6382,189.74,189.68,3.24]
[1735307294625,12.07335472,189.75,189.68,3.24]
[1735307294820,3.1392,189.79,189.72,2.6383]
[1735307295026,1.5432,189.79,189.68,3.24]
[1735307295818,12.07335472,189.74,189.66,3.24]
[1735307296018,12.07335472,189.74,189.63,30.83966334]
[1735307296019,12.07335472,189.74,189.63,29.23356334]
[1735307296223,12.07335472,189.74,189.65,29.23356334]
[1735307296632,2.6384,189.73,189.67,2.6391]
[1735307296826,12.07335472,189.74,189.65,29.23356334]
[1735307297230,2.6389,189.69,189.65,29.23356334]
[1735307297539,12.07335472,189.71,189.64,3.24]
[1735307297723,12.07335472,189.68,189.62,7.29761737]
[1735307298233,1.5766,189.7,189.62,7.29761737]
[1735307298533,4.2154,189.7,189.65,2.6393]
[1735307298824,4.2154,189.7,189.61,25.17594597]
[1735307298825,1.5766,189.7,189.61,3.24]
[1735307299131,12.07335472,189.69,189.61,3.24]
[1735307299430,14.71225472,189.69,189.63,2.6397]
[1735307299628,12.07335472,189.69,189.61,3.24]
[1735307300027,2.6393,189.66,189.61,3.24]
[1735307300426,12.07335472,189.66,189.6,10.53761737]
[1735307300623,12.07335472,189.66,189.6,29.23356334]
[1735307300624,2.6399,189.62,189.6,29.23356334]
[1735307301030,12.07335472,189.66,189.6,29.23356334]
[1735307301226,2.6396,189.64,189.6,29.23356334]
[1735307301630,2.6396,189.64,189.59,2.6401]
[1735307302332,12.07335472,189.66,189.58,3.24]
[1735307303740,2.6398,189.63,189.58,5.8803]
[1735307303929,12.07335472,189.66,189.58,3.24]
[1735307304330,2.6396,189.64,189.6,2.6401]
[1735307304536,2.6396,189.64,189.58,3.24]
[1735307304537,12.07335472,189.63,189.55,10.53761737]
[1735307304730,12.07335472,189.63,189.56,10.53761737]
[1735307304937,2.6404,189.58,189.56,7.29761737]
[1735307305936,2.6404,189.58,189.54,3.24]
[1735307306133,14.71355472,189.6,189.54,5.8809]
[1735307306438,12.07335472,189.66,189.55,3.24]
[1735307306644,3.1503,189.69,189.55,3.24]
[1735307306945,2.6393,189.66,189.61,2.64]
[1735307308835,12.07335472,189.67,189.62,2.6398]
[1735307309037,1.5548,189.69,189.6,3.24]
[1735307309236,2.6389,189.69,189.63,2.6396]
[1735307309636,12.07335472,189.7,189.6,3.24]
[1735307309836,12.07335472,189.7,189.66,2.6393]
[1735307310242,2.6389,189.69,189.64,2.6395]
[1735307310542,12.07335472,189.7,189.6,3.24]
[1735307311046,12.07335472,189.7,189.63,2.6397]
[1735307311047,2.6389,189.69,189.63,2.6397]
[1735307311636,12.07335472,189.7,189.6,3.24]
[1735307311830,12.07335472,189.67,189.6,3.24]
[1735307312337,2.6394,189.66,189.6,5.8801]
[1735307312546,12.07335472,189.67,189.6,3.24]
[1735307312846,2.6394,189.66,189.6,3.24]
[1735307314544,2.6394,189.66,189.6,5.88]
[1735307314748,12.07335472,189.7,189.6,3.24]
[1735307314945,2.6394,189.65,189.6,3.24]
[1735307315543,13.66885472,189.7,189.58,1.5861]
[1735307315744,12.07335472,189.65,189.58,3.28]
[1735307317045,2.6396,189.64,189.59,2.6402]
[1735307318142,2.64,189.61,189.56,5.9206]
[1735307318647,1.5955,189.7,189.56,5.9206]
[1735307318648,12.07335472,189.62,189.56,3.28]
[1735307318847,3.28,189.67,189.5,44.40691806]
[1735307318848,12.07335472,189.59,189.5,3.1]
[1735307319141,12.07335472,189.59,189.51,3.28]
[1735307320544,2.6405,189.58,189.53,2.6411]
[1735307320750,12.07335472,189.59,189.5,3.28]
[1735307321243,12.07335472,189.59,189.52,2.6412]
[1735307321244,2.6405,189.57,189.52,2.6412]
[1735307321445,12.07335472,189.59,189.5,3.28]
[1735307321642,2.6407,189.56,189.51,2.6413]
[1735307321847,12.07335472,189.59,189.5,3.28]
[1735307323259,1.6306,189.64,189.5,3.28]
[1735307323547,13.70395472,189.64,189.5,15.35335472]
[1735307324250,2.64,189.62,189.5,15.35335472]
[1735307325255,2.64,189.62,189.56,2.6407]
[1735307325548,2.64,189.62,189.56,5.9207]
[1735307326654,2.64,189.61,189.56,5.9207]
[1735307326955,13.70395472,189.64,189.56,3.28]
[1735307327455,12.07335472,189.61,189.52,3.28]
[1735307327658,12.07335472,189.58,189.5,3.28]
[1735307327957,12.07335472,189.61,189.5,3.28]
[1735307328749,12.07335472,189.61,189.46,7.29761737]
[1735307328955,12.07335472,189.57,189.47,3.28]
[1735307330652,2.641,189.54,189.49,2.6416]
[1735307330851,12.07335472,189.57,189.47,3.28]
[1735307331048,12.07335472,189.57,189.46,3.28]
[1735307331254,1.5845,189.56,189.46,3.28]
[1735307331748,12.07335472,189.54,189.46,3.28]
[1735307331947,12.07335472,189.54,189.45,2.97026]
[1735307332357,2.6417,189.49,189.45,2.97026]
[1735307332960,2.6419,189.48,189.45,2.97026]
[1735307335659,12.07335472,189.51,189.45,2.97026]
[1735307336461,2.6419,189.48,189.45,2.97026]
[1735307336756,12.07335472,189.51,189.45,2.97026]
[1735307336962,12.07335472,189.54,189.45,2.97026]
[1735307337160,12.07335472,189.54,189.49,2.6416]
[1735307337461,12.07335472,189.54,189.46,3.28]
[1735307337853,12.07335472,189.54,189.49,2.6415]
[1735307338266,14.71435472,189.54,189.49,2.6415]
[1735307339257,12.07335472,189.54,189.46,3.28]
[1735307339562,2.6411,189.53,189.48,2.6418]
[1735307343165,12.07335472,189.54,189.49,2.6416]
[1735307343565,12.07335472,189.57,189.46,3.28]
[1735307343766,12.07335472,189.57,189.47,3.221]
[1735307344063,12.07335472,189.6,189.49,12.07335472]
[1735307344360,2.6399,189.62,189.57,2.6405]
[1735307345362,12.07335472,189.63,189.57,2.6405]
[1735307345563,67.71086689,189.66,189.56,3.0653]
[1735307346465,2.6396,189.64,189.59,2.6403]
[1735307346666,2.6396,189.64,189.56,3.0653]
[1735307347468,2.6396,189.64,189.58,2.6404]
[1735307348356,67.71086689,189.66,189.56,3.0653]
[1735307348564,12.07335472,189.72,189.58,12.07335472]
[1735307348762,12.07335472,189.72,189.59,1.6011]
[1735307349072,12.07335472,189.72,189.6,3.24]
[1735307349562,2.6389,189.7,189.64,2.6395]
[1735307353167,2.6389,189.69,189.64,2.6395]
[1735307354765,12.07335472,189.72,189.59,1.6011]
[1735307354958,12.07335472,189.66,189.58,3.24]
[1735307355159,12.07335472,189.63,189.56,1.5364]
[1735307355464,12.07335472,189.63,189.55,3.24]
[1735307355966,12.07335472,189.6,189.54,7.30610934]
[1735307356471,2.6403,189.59,189.53,2.641]
[1735307358168,2.6401,189.61,189.56,2.6406]
[1735307358374,12.07335472,189.63,189.56,2.6406]
[1735307359271,12.07335472,189.66,189.59,2.6402]
[1735307359575,12.07335472,189.66,189.59,5.8802]
[1735307360567,2.6396,189.64,189.59,5.8802]
[1735307361474,2.6396,189.64,189.59,3.24]
[1735307363373,12.07335472,189.66,189.59,3.24]
[1735307363573,2.6398,189.62,189.59,3.24]
[1735307363763,12.07335472,189.66,189.59,3.24]
[1735307363970,2.6397,189.63,189.56,1.6687]
[1735307364271,12.07335472,189.66,189.56,1.6687]
[1735307365268,2.6401,189.61,189.56,4.3093]
[1735307366877,2.6403,189.59,189.55,2.6408]
[1735307367379,2.6403,189.59,189.54,2.6409]
[1735307368075,2.6404,189.58,189.53,5.8811]
[1735307369370,2.64,189.62,189.56,2.6407]
[1735307369572,12.07335472,189.63,189.56,2.6407]
[1735307370479,2.64,189.61,189.56,2.6407]
[1735307372477,12.07335472,189.63,189.51,12.07335472]
[1735307372681,12.07335472,189.63,189.52,3.24]
[1735307372984,2.6401,189.6,189.55,2.6408]
[1735307373171,1.6295,189.62,189.51,3.2]
[1735307373676,3.1592,189.71,189.51,3.2]
[1735307373677,12.07335472,189.69,189.54,12.07335472]
[1735307373877,12.07335472,189.69,189.57,12.07335472]
[1735307374182,67.66734157,189.72,189.6,12.07335472]
[1735307374385,55.59398685,189.72,189.61,3.2]
[1735307374587,14.71145472,189.75,189.68,2.639]
[1735307374783,12.07335472,189.75,189.67,3.2]
[1735307375288,2.6388,189.7,189.67,3.2]
[1735307375784,12.07335472,189.72,189.63,3.2]